[Event "Live Chess"]
[Site "Chess.com"]
[Date "2023.05.21"]
[Round "-"]
[White "tpm07"]
[Black "CheckThis4"]
[Result "0-1"]
[WhiteElo "1942"]
[BlackElo "2520"]
[TimeControl "300"]
[EndTime "6:04:33 PDT"]
[Termination "CheckThis4 won by resignation"]

1. e4 {[%clk 0:04:54.2]} 1... c5 {[%clk 0:04:55.2]} 2. Nf3 {[%clk 0:04:52.6]}
2... Nc6 {[%clk 0:04:52.1]} 3. d4 {[%clk 0:04:52]} 3... cxd4 {[%clk 0:04:50.7]}
4. Nxd4 {[%clk 0:04:51.9]} 4... g6 {[%clk 0:04:49.2]} 5. c4 {[%clk 0:04:50.6]}
5... Bg7 {[%clk 0:04:48.1]} 6. Be3 {[%clk 0:04:50]} 6... Nf6 {[%clk 0:04:47.5]}
7. Nc3 {[%clk 0:04:49.1]} 7... O-O {[%clk 0:04:46.3]} 8. Be2 {[%clk 0:04:47.5]}
8... d6 {[%clk 0:04:41.7]} 9. O-O {[%clk 0:04:43]} 9... Nxd4 {[%clk 0:04:38.9]}
10. Bxd4 {[%clk 0:04:41.8]} 10... Be6 {[%clk 0:04:38.5]} 11. Qd2 {[%clk
0:04:35.1]} 11... Rc8 {[%clk 0:04:34.9]} 12. b3 {[%clk 0:04:33.9]} 12... Qa5
{[%clk 0:04:31.7]} 13. Rfd1 {[%clk 0:04:03.9]} 13... Rfe8 {[%clk 0:04:29.6]} 14.
f3 {[%clk 0:03:59.8]} 14... a6 {[%clk 0:04:28.3]} 15. Rac1 {[%clk 0:03:55.3]}
15... Nd7 {[%clk 0:04:18.9]} 16. Bxg7 {[%clk 0:03:48.6]} 16... Kxg7 {[%clk
0:04:18.8]} 17. Qd4+ {[%clk 0:03:42]} 17... Qe5 {[%clk 0:04:12.3]} 18. Qxe5+
{[%clk 0:03:33.8]} 18... Nxe5 {[%clk 0:04:12.2]} 19. f4 {[%clk 0:03:28.1]} 19...
Nc6 {[%clk 0:04:01.9]} 20. Nd5 {[%clk 0:03:24.6]} 20... Bxd5 {[%clk 0:03:55]}
21. exd5 {[%clk 0:03:18.7]} 21... Nb8 {[%clk 0:03:48.6]} 22. Bg4 {[%clk
0:03:02.9]} 22... f5 {[%clk 0:03:46.7]} 23. Bf3 {[%clk 0:03:01]} 23... Nd7
{[%clk 0:03:41.5]} 24. Re1 {[%clk 0:02:58.3]} 24... Nc5 {[%clk 0:03:38.2]} 25.
Re3 {[%clk 0:02:51.8]} 25... b5 {[%clk 0:03:29.4]} 26. Rce1 {[%clk 0:02:45.8]}
26... Kf7 {[%clk 0:03:25.8]} 27. b4 {[%clk 0:02:44.3]} 27... Na4 {[%clk
0:03:23.7]} 28. cxb5 {[%clk 0:02:38]} 28... axb5 {[%clk 0:03:23.6]} 29. Be2
{[%clk 0:02:34.1]} 29... Nc3 {[%clk 0:03:20.2]} 30. Bf1 {[%clk 0:02:24.8]} 30...
Nxd5 {[%clk 0:03:14.6]} 31. Ra3 {[%clk 0:02:22.8]} 31... Nxb4 {[%clk 0:03:09.4]}
32. Rb3 {[%clk 0:02:12.2]} 32... Nxa2 {[%clk 0:02:56.5]} 33. Bxb5 {[%clk
0:02:09.1]} 33... Red8 {[%clk 0:02:51.9]} 34. Ra1 {[%clk 0:01:49.3]} 34... Nc3
{[%clk 0:02:46]} 35. Bf1 {[%clk 0:01:45.9]} 35... Rc7 {[%clk 0:02:37.8]} 36. h3
{[%clk 0:01:36]} 36... d5 {[%clk 0:02:17]} 37. Bd3 {[%clk 0:01:19.9]} 37... d4
{[%clk 0:02:14.4]} 38. Kf2 {[%clk 0:01:17.5]} 38... Rd6 {[%clk 0:01:45.4]} 39.
g4 {[%clk 0:01:12]} 39... Ne4+ {[%clk 0:01:43.3]} 40. Kf3 {[%clk 0:01:08.8]}
40... Nd2+ {[%clk 0:01:42.3]} 0-1

[Event "Live Chess"]
[Site "Chess.com"]
[Date "2023.05.21"]
[Round "-"]
[White "LordBenin"]
[Black "HoarseyHorsey"]
[Result "1-0"]
[WhiteElo "1377"]
[BlackElo "1456"]
[TimeControl "300"]
[EndTime "6:04:35 PDT"]
[Termination "LordBenin won by resignation"]

1. e4 {[%clk 0:04:58.7]} 1... c5 {[%clk 0:04:57.2]} 2. Nf3 {[%clk 0:04:52.4]}
2... e6 {[%clk 0:04:56.5]} 3. c3 {[%clk 0:04:51.4]} 3... d5 {[%clk 0:04:52.9]}
4. exd5 {[%clk 0:04:49.8]} 4... exd5 {[%clk 0:04:52.8]} 5. d4 {[%clk 0:04:48.3]}
5... Nf6 {[%clk 0:04:51.8]} 6. Bb5+ {[%clk 0:04:45.4]} 6... Nc6 {[%clk 0:04:50]}
7. O-O {[%clk 0:04:42.1]} 7... Bg4 {[%clk 0:04:45.2]} 8. Re1+ {[%clk 0:04:36.9]}
8... Be7 {[%clk 0:04:44.5]} 9. dxc5 {[%clk 0:04:28]} 9... O-O {[%clk 0:04:39.9]}
10. b4 {[%clk 0:04:25.7]} 10... Re8 {[%clk 0:04:35.3]} 11. Be3 {[%clk
0:04:08.6]} 11... Ne4 {[%clk 0:04:23.4]} 12. h3 {[%clk 0:03:59.4]} 12... Bh5
{[%clk 0:04:21.9]} 13. Be2 {[%clk 0:03:51.6]} 13... Bf6 {[%clk 0:04:11.7]} 14.
Qc2 {[%clk 0:03:48.8]} 14... Bg6 {[%clk 0:04:09.7]} 15. Bd3 {[%clk 0:03:46]}
15... Qd7 {[%clk 0:03:52.8]} 16. Nbd2 {[%clk 0:03:42.9]} 16... Nxd2 {[%clk
0:03:49.6]} 17. Qxd2 {[%clk 0:03:41.4]} 17... Bxd3 {[%clk 0:03:47]} 18. Qxd3
{[%clk 0:03:38.5]} 18... Ne5 {[%clk 0:03:40.2]} 19. Nxe5 {[%clk 0:03:36.3]}
19... Bxe5 {[%clk 0:03:40.1]} 20. Bd4 {[%clk 0:03:31.7]} 20... f6 {[%clk
0:03:37.2]} 21. Rad1 {[%clk 0:03:22.1]} 21... Qc7 {[%clk 0:03:36]} 22. Bxe5
{[%clk 0:03:14.5]} 22... Rxe5 {[%clk 0:03:34]} 23. Rxe5 {[%clk 0:03:11.6]} 23...
Qxe5 {[%clk 0:03:33.2]} 24. Qxd5+ {[%clk 0:03:07]} 24... Qxd5 {[%clk 0:03:32.7]}
25. Rxd5 {[%clk 0:03:05.9]} 25... Rb8 {[%clk 0:03:25.6]} 26. Kf1 {[%clk
0:03:03.3]} 26... Kf7 {[%clk 0:03:25]} 27. Rd7+ {[%clk 0:03:01.3]} 27... Kg6
{[%clk 0:03:23.8]} 28. a4 {[%clk 0:02:58.1]} 28... f5 {[%clk 0:03:20.5]} 29. Ke2
{[%clk 0:02:55.8]} 29... Kf6 {[%clk 0:03:19.8]} 30. Kf3 {[%clk 0:02:52.4]} 30...
h6 {[%clk 0:03:19]} 31. Rd6+ {[%clk 0:02:49]} 31... Ke7 {[%clk 0:03:15.2]} 32.
g4 {[%clk 0:02:45]} 32... fxg4+ {[%clk 0:03:06.5]} 33. hxg4 {[%clk 0:02:43.7]}
33... b6 {[%clk 0:03:05.9]} 34. Ke4 {[%clk 0:02:40.4]} 34... bxc5 {[%clk
0:03:04.1]} 35. bxc5 {[%clk 0:02:39.3]} 35... Re8 {[%clk 0:03:00.1]} 36. Ra6
{[%clk 0:02:34.9]} 36... Ra8 {[%clk 0:02:54.4]} 37. f4 {[%clk 0:02:32]} 37...
Kf8 {[%clk 0:02:45.6]} 38. Kd5 {[%clk 0:02:29.7]} 38... Ke8 {[%clk 0:02:29.8]}
39. c6 {[%clk 0:02:27.7]} 39... Ke7 {[%clk 0:02:18.6]} 40. c4 {[%clk 0:02:21]}
40... Rd8+ {[%clk 0:02:12.6]} 41. Ke5 {[%clk 0:02:18.9]} 41... Ra8 {[%clk
0:02:08.4]} 42. c5 {[%clk 0:02:16.7]} 42... g6 {[%clk 0:02:00.7]} 43. Ra5 {[%clk
0:02:12.8]} 43... a6 {[%clk 0:01:54.6]} 44. f5 {[%clk 0:02:06.4]} 44... gxf5
{[%clk 0:01:52.1]} 45. Kxf5 {[%clk 0:02:05.4]} 45... Rg8 {[%clk 0:01:47.5]} 46.
Rxa6 {[%clk 0:02:01.7]} 46... Rg5+ {[%clk 0:01:46.2]} 47. Kf4 {[%clk 0:01:58.5]}
47... Rxc5 {[%clk 0:01:44.8]} 48. Ra7+ {[%clk 0:01:45.8]} 48... Kd6 {[%clk
0:01:42.1]} 49. c7 {[%clk 0:01:44.3]} 49... Rc4+ {[%clk 0:01:35.5]} 50. Kf5
{[%clk 0:01:41.2]} 50... Rxc7 {[%clk 0:01:31.8]} 51. Rxc7 {[%clk 0:01:39.4]}
51... Kxc7 {[%clk 0:01:31.7]} 52. Kg6 {[%clk 0:01:38]} 1-0

[Event "Live Chess"]
[Site "Chess.com"]
[Date "2023.05.21"]
[Round "-"]
[White "GEMdzq"]
[Black "ViktorTheCoolBoy"]
[Result "0-1"]
[WhiteElo "2259"]
[BlackElo "2465"]
[TimeControl "300"]
[EndTime "6:04:35 PDT"]
[Termination "ViktorTheCoolBoy won by resignation"]

1. e4 {[%clk 0:04:58]} 1... c6 {[%clk 0:04:58.3]} 2. d4 {[%clk 0:04:56.9]} 2...
d5 {[%clk 0:04:58.2]} 3. e5 {[%clk 0:04:56.4]} 3... c5 {[%clk 0:04:56.6]} 4.
dxc5 {[%clk 0:04:56.3]} 4... e6 {[%clk 0:04:55.8]} 5. Be3 {[%clk 0:04:55.1]}
5... Nd7 {[%clk 0:04:53.8]} 6. Bb5 {[%clk 0:04:53]} 6... Qc7 {[%clk 0:04:51.6]}
7. Nf3 {[%clk 0:04:50.4]} 7... Bxc5 {[%clk 0:04:50]} 8. Bxc5 {[%clk 0:04:45.6]}
8... Qxc5 {[%clk 0:04:49.9]} 9. Nc3 {[%clk 0:04:44.6]} 9... Ne7 {[%clk
0:04:48.2]} 10. O-O {[%clk 0:04:33.9]} 10... O-O {[%clk 0:04:46.1]} 11. Bd3
{[%clk 0:04:19.9]} 11... Ng6 {[%clk 0:04:44]} 12. Re1 {[%clk 0:04:16.5]} 12...
Qc7 {[%clk 0:04:42.3]} 13. h4 {[%clk 0:04:02.5]} 13... Ngxe5 {[%clk 0:04:36.1]}
14. Nxe5 {[%clk 0:04:01.1]} 14... Nxe5 {[%clk 0:04:36]} 15. Bxh7+ {[%clk
0:03:57.9]} 15... Kxh7 {[%clk 0:04:32.8]} 16. Qh5+ {[%clk 0:03:56.4]} 16... Kg8
{[%clk 0:04:32.4]} 17. Rxe5 {[%clk 0:03:47.8]} 17... f6 {[%clk 0:04:24.8]} 18.
Re2 {[%clk 0:03:32.3]} 18... d4 {[%clk 0:04:23.4]} 19. Ne4 {[%clk 0:03:28.2]}
19... Qc4 {[%clk 0:04:20.6]} 20. Rae1 {[%clk 0:03:25.7]} 20... e5 {[%clk
0:04:09.7]} 21. Qf3 {[%clk 0:03:02.4]} 21... Qc6 {[%clk 0:04:00]} 22. Qg3 {[%clk
0:02:54.9]} 22... Bf5 {[%clk 0:03:56]} 23. h5 {[%clk 0:02:48.6]} 23... Kh7
{[%clk 0:03:52.8]} 24. Qf3 {[%clk 0:02:35.4]} 24... Qd7 {[%clk 0:03:43.2]} 25.
Nc5 {[%clk 0:02:22.1]} 25... Qc8 {[%clk 0:03:40.1]} 26. Nxb7 {[%clk 0:02:10.3]}
26... Bg4 {[%clk 0:03:36.8]} 27. Qe4+ {[%clk 0:02:09.2]} 27... f5 {[%clk
0:03:35.4]} 28. Qd5 {[%clk 0:01:56.3]} 28... Bxe2 {[%clk 0:03:32.7]} 29. Rxe2
{[%clk 0:01:54.6]} 29... e4 {[%clk 0:03:28.2]} 30. Nd6 {[%clk 0:01:42.5]} 30...
Qd7 {[%clk 0:03:26]} 31. Rd2 {[%clk 0:01:29.5]} 31... Rad8 {[%clk 0:03:23.6]}
32. Rxd4 {[%clk 0:01:28.5]} 32... Rf6 {[%clk 0:03:22.2]} 33. Nxf5 {[%clk
0:01:26.2]} 33... Qxd5 {[%clk 0:03:18.4]} 0-1

[Event "Live Chess"]
[Site "Chess.com"]
[Date "2023.05.21"]
[Round "-"]
[White "jumush"]
[Black "stevochess11"]
[Result "1/2-1/2"]
[WhiteElo "1728"]
[BlackElo "1703"]
[TimeControl "300"]
[EndTime "6:04:42 PDT"]
[Termination "Game drawn by repetition"]

1. e4 {[%clk 0:04:54.6]} 1... c5 {[%clk 0:04:59]} 2. Nc3 {[%clk 0:04:52.1]} 2...
g6 {[%clk 0:04:54.5]} 3. d4 {[%clk 0:04:50.4]} 3... cxd4 {[%clk 0:04:49.4]} 4.
Qxd4 {[%clk 0:04:42.3]} 4... Nf6 {[%clk 0:04:40]} 5. Be3 {[%clk 0:04:39.8]} 5...
Nc6 {[%clk 0:04:35.8]} 6. Qd2 {[%clk 0:04:38.1]} 6... Bg7 {[%clk 0:04:34.7]} 7.
f3 {[%clk 0:04:35.8]} 7... d6 {[%clk 0:04:31.8]} 8. O-O-O {[%clk 0:04:34]} 8...
O-O {[%clk 0:04:25]} 9. h4 {[%clk 0:04:32.1]} 9... Qa5 {[%clk 0:04:23.6]} 10.
Kb1 {[%clk 0:04:29.4]} 10... Be6 {[%clk 0:04:22]} 11. Nge2 {[%clk 0:04:26.9]}
11... Nb4 {[%clk 0:04:19.8]} 12. Nc1 {[%clk 0:04:25]} 12... Ne8 {[%clk
0:04:07.4]} 13. h5 {[%clk 0:04:22.5]} 13... Bxc3 {[%clk 0:03:55.5]} 14. Qxc3
{[%clk 0:04:20.6]} 14... Bxa2+ {[%clk 0:03:52.5]} 15. Nxa2 {[%clk 0:04:17.4]}
15... Qxa2+ {[%clk 0:03:51]} 16. Kc1 {[%clk 0:04:15.9]} 16... Qa1+ {[%clk
0:03:49.9]} 17. Kd2 {[%clk 0:04:14.1]} 17... Qa5 {[%clk 0:03:39.4]} 18. hxg6
{[%clk 0:04:11.9]} 18... fxg6 {[%clk 0:03:35.8]} 19. Bc4+ {[%clk 0:04:05.8]}
19... d5 {[%clk 0:03:33.2]} 20. exd5 {[%clk 0:03:59.9]} 20... Nd6 {[%clk
0:03:31]} 21. Rxh7 {[%clk 0:03:41.1]} 21... Kxh7 {[%clk 0:03:18]} 22. Rh1+
{[%clk 0:03:38.9]} 22... Kg8 {[%clk 0:03:16.7]} 23. Bh6 {[%clk 0:03:20.7]} 23...
Nxc4+ {[%clk 0:03:09.7]} 24. Ke2 {[%clk 0:03:18.9]} 24... Rf7 {[%clk 0:02:47]}
25. Bg5 {[%clk 0:03:12]} 25... Rg7 {[%clk 0:02:33]} 26. Qxc4 {[%clk 0:03:09]}
26... Qxd5 {[%clk 0:02:21.6]} 27. Qh4 {[%clk 0:03:03.6]} 27... Qc4+ {[%clk
0:02:14.2]} 28. Kf2 {[%clk 0:02:53.7]} 28... Qxc2+ {[%clk 0:02:07.1]} 29. Kg3
{[%clk 0:02:50.8]} 29... Qc7+ {[%clk 0:01:59.6]} 30. f4 {[%clk 0:02:44]} 30...
Kf7 {[%clk 0:01:50.6]} 31. Re1 {[%clk 0:02:36.4]} 31... Nd3 {[%clk 0:01:41.2]}
32. Rxe7+ {[%clk 0:02:33.8]} 32... Qxe7 {[%clk 0:01:34.6]} 33. Bxe7 {[%clk
0:02:31.6]} 33... Re8 {[%clk 0:01:28.8]} 34. Qf6+ {[%clk 0:02:27.2]} 34... Kg8
{[%clk 0:01:27.5]} 35. Qe6+ {[%clk 0:02:13.3]} 35... Kh8 {[%clk 0:01:25.9]} 36.
Qh3+ {[%clk 0:02:04.5]} 36... Kg8 {[%clk 0:01:23.8]} 37. Qe6+ {[%clk 0:02:02.6]}
37... Kh8 {[%clk 0:01:17.6]} 38. Qh3+ {[%clk 0:02:00.9]} 38... Kg8 {[%clk
0:01:16.2]} 39. Qe6+ {[%clk 0:01:59.4]} 1/2-1/2

[Event "Live Chess"]
[Site "Chess.com"]
[Date "2023.05.21"]
[Round "-"]
[White "Missedidea"]
[Black "DoYouLikeCurry"]
[Result "1/2-1/2"]
[WhiteElo "1789"]
[BlackElo "1446"]
[TimeControl "300"]
[EndTime "6:04:49 PDT"]
[Termination "Game drawn - insufficient material"]

1. d4 {[%clk 0:04:58.4]} 1... d5 {[%clk 0:04:58.8]} 2. c4 {[%clk 0:04:57.2]}
2... e6 {[%clk 0:04:58.1]} 3. Nc3 {[%clk 0:04:55.8]} 3... a6 {[%clk 0:04:56.2]}
4. cxd5 {[%clk 0:04:51.1]} 4... exd5 {[%clk 0:04:53.3]} 5. Nf3 {[%clk
0:04:48.7]} 5... Nf6 {[%clk 0:04:49.4]} 6. Bg5 {[%clk 0:04:46.6]} 6... Be7
{[%clk 0:04:43.3]} 7. e3 {[%clk 0:04:45.1]} 7... Bg4 {[%clk 0:04:36.6]} 8. h3
{[%clk 0:04:42.6]} 8... Bxf3 {[%clk 0:04:35.4]} 9. Qxf3 {[%clk 0:04:40.5]} 9...
Nbd7 {[%clk 0:04:35.3]} 10. Bd3 {[%clk 0:04:37.4]} 10... c5 {[%clk 0:04:33.3]}
11. O-O {[%clk 0:04:34.4]} 11... cxd4 {[%clk 0:04:31.6]} 12. exd4 {[%clk
0:04:32.2]} 12... Qb6 {[%clk 0:04:30.9]} 13. Nxd5 {[%clk 0:04:20.2]} 13... Qxd4
{[%clk 0:04:20]} 14. Nxe7 {[%clk 0:04:17.2]} 14... Kxe7 {[%clk 0:04:17.6]} 15.
Rfe1+ {[%clk 0:04:14.8]} 15... Kd8 {[%clk 0:04:12]} 16. Qxb7 {[%clk 0:04:10.1]}
16... Rb8 {[%clk 0:04:05.1]} 17. Qxa6 {[%clk 0:03:56.6]} 17... Rxb2 {[%clk
0:04:01.2]} 18. Qa5+ {[%clk 0:03:40.1]} 18... Kc8 {[%clk 0:03:56]} 19. Ba6+
{[%clk 0:03:37.3]} 19... Kb8 {[%clk 0:03:52.3]} 20. Be3 {[%clk 0:03:32.8]} 20...
Qb4 {[%clk 0:03:38.6]} 21. Qxb4+ {[%clk 0:03:20.8]} 21... Rxb4 {[%clk
0:03:36.9]} 22. Rab1 {[%clk 0:03:17.9]} 22... Rxb1 {[%clk 0:03:34.7]} 23. Rxb1+
{[%clk 0:03:16.1]} 23... Kc7 {[%clk 0:03:34.3]} 24. Bf4+ {[%clk 0:03:12.9]}
24... Kc6 {[%clk 0:03:30.6]} 25. Bb5+ {[%clk 0:03:10.9]} 25... Kc5 {[%clk
0:03:23.7]} 26. Be3+ {[%clk 0:03:08.7]} 26... Kd6 {[%clk 0:03:16.6]} 27. a4
{[%clk 0:03:02.1]} 27... Ra8 {[%clk 0:03:10.1]} 28. Rd1+ {[%clk 0:02:55.8]}
28... Ke7 {[%clk 0:03:08.1]} 29. Bg5 {[%clk 0:02:53.3]} 29... Nc5 {[%clk
0:02:38.1]} 30. Bc6 {[%clk 0:02:29.5]} 30... Rc8 {[%clk 0:02:32.9]} 31. Bb5
{[%clk 0:02:16.7]} 31... Ra8 {[%clk 0:02:31.2]} 32. Rd4 {[%clk 0:02:12]} 32...
Ne6 {[%clk 0:02:22.5]} 33. Rd7+ {[%clk 0:02:07.5]} 33... Kf8 {[%clk 0:02:18.6]}
34. Bxf6 {[%clk 0:02:03.5]} 34... gxf6 {[%clk 0:02:18.1]} 35. g3 {[%clk
0:01:57.7]} 35... Nc5 {[%clk 0:02:12]} 36. Rd4 {[%clk 0:01:55.7]} 36... Ne6
{[%clk 0:02:06.3]} 37. Rc4 {[%clk 0:01:50.4]} 37... Ke7 {[%clk 0:02:02.9]} 38.
f4 {[%clk 0:01:48.4]} 38... f5 {[%clk 0:01:59.7]} 39. Kf2 {[%clk 0:01:46.3]}
39... Kd6 {[%clk 0:01:56.8]} 40. Rc6+ {[%clk 0:01:41.8]} 40... Ke7 {[%clk
0:01:54]} 41. Ra6 {[%clk 0:01:38.8]} 41... Rc8 {[%clk 0:01:48.4]} 42. Ke3 {[%clk
0:01:34.3]} 42... Rc3+ {[%clk 0:01:44.6]} 43. Kf2 {[%clk 0:01:28.5]} 43... Nc5
{[%clk 0:01:40.9]} 44. Rc6 {[%clk 0:01:22.3]} 44... Ne4+ {[%clk 0:01:34.9]} 45.
Ke2 {[%clk 0:01:13.9]} 45... Nxg3+ {[%clk 0:01:34.1]} 46. Kd2 {[%clk 0:01:09.3]}
46... Rxc6 {[%clk 0:01:27.8]} 47. Bxc6 {[%clk 0:01:07.2]} 47... Kd6 {[%clk
0:01:26.2]} 48. Bf3 {[%clk 0:01:04.3]} 48... Kc5 {[%clk 0:01:23.4]} 49. a5
{[%clk 0:01:02.5]} 49... Kb5 {[%clk 0:01:19.7]} 50. Ke3 {[%clk 0:00:58.3]} 50...
Kxa5 {[%clk 0:01:17.1]} 51. Kd4 {[%clk 0:00:57.2]} 51... Kb5 {[%clk 0:01:09.3]}
52. Ke5 {[%clk 0:00:54.6]} 52... Kc4 {[%clk 0:01:06.6]} 53. Kf6 {[%clk
0:00:51.1]} 53... Kd3 {[%clk 0:01:03.3]} 54. Kg5 {[%clk 0:00:49.3]} 54... Ke3
{[%clk 0:00:59.8]} 55. Bd5 {[%clk 0:00:46.7]} 55... Ne2 {[%clk 0:00:55.1]} 56.
Bxf7 {[%clk 0:00:44]} 56... Nxf4 {[%clk 0:00:51.8]} 57. h4 {[%clk 0:00:38.7]}
57... Ng6 {[%clk 0:00:47.1]} 58. h5 {[%clk 0:00:35.6]} 58... Ne5 {[%clk
0:00:37.6]} 59. Bg8 {[%clk 0:00:30.4]} 59... h6+ {[%clk 0:00:34.3]} 60. Kxf5
{[%clk 0:00:27.4]} 60... Nd7 {[%clk 0:00:29.6]} 61. Be6 {[%clk 0:00:24.2]} 61...
Nc5 {[%clk 0:00:26.7]} 62. Bc8 {[%clk 0:00:22.1]} 62... Ne4 {[%clk 0:00:23.7]}
63. Kg6 {[%clk 0:00:20.2]} 63... Ng3 {[%clk 0:00:21.9]} 64. Kxh6 {[%clk
0:00:19.4]} 64... Nxh5 {[%clk 0:00:20.8]} 1/2-1/2

[Event "Live Chess"]
[Site "Chess.com"]
[Date "2023.05.21"]
[Round "-"]
[White "EdenHazard8"]
[Black "LiamClery2020"]
[Result "1-0"]
[WhiteElo "1959"]
[BlackElo "1966"]
[TimeControl "300"]
[EndTime "6:04:56 PDT"]
[Termination "EdenHazard8 won by checkmate"]

1. e4 {[%clk 0:04:59.1]} 1... Nf6 {[%clk 0:04:58.4]} 2. e5 {[%clk 0:04:58.1]}
2... Nd5 {[%clk 0:04:57.7]} 3. d4 {[%clk 0:04:58]} 3... d6 {[%clk 0:04:57.1]} 4.
exd6 {[%clk 0:04:57.1]} 4... cxd6 {[%clk 0:04:56.3]} 5. Nf3 {[%clk 0:04:56.5]}
5... g6 {[%clk 0:04:55.6]} 6. c4 {[%clk 0:04:54.7]} 6... Nb6 {[%clk 0:04:54.7]}
7. Nc3 {[%clk 0:04:52.7]} 7... Bg7 {[%clk 0:04:52.9]} 8. Be3 {[%clk 0:04:51]}
8... O-O {[%clk 0:04:52.3]} 9. h4 {[%clk 0:04:49.9]} 9... Nc6 {[%clk 0:04:51.8]}
10. Be2 {[%clk 0:04:46.5]} 10... Bg4 {[%clk 0:04:51]} 11. Qd2 {[%clk 0:04:42]}
11... Bxf3 {[%clk 0:04:49.5]} 12. gxf3 {[%clk 0:04:41.9]} 12... e5 {[%clk
0:04:48.5]} 13. d5 {[%clk 0:04:40.5]} 13... Ne7 {[%clk 0:04:45.9]} 14. Bh6
{[%clk 0:04:36]} 14... Nf5 {[%clk 0:04:44.1]} 15. Bxg7 {[%clk 0:04:34.7]} 15...
Kxg7 {[%clk 0:04:43.5]} 16. h5 {[%clk 0:04:33.5]} 16... Rc8 {[%clk 0:04:42.2]}
17. b3 {[%clk 0:04:31.4]} 17... Nd4 {[%clk 0:04:38.5]} 18. hxg6 {[%clk
0:04:27.3]} 18... Qf6 {[%clk 0:04:32.7]} 19. Qh6+ {[%clk 0:04:24.9]} 19... Kg8
{[%clk 0:04:32]} 20. Qxh7# {[%clk 0:04:23.8]} 1-0

[Event "Live Chess"]
[Site "Chess.com"]
[Date "2023.05.21"]
[Round "-"]
[White "GMHarry-youtube"]
[Black "YrrriKharkiv"]
[Result "0-1"]
[WhiteElo "2018"]
[BlackElo "2087"]
[TimeControl "300"]
[EndTime "6:05:03 PDT"]
[Termination "YrrriKharkiv won by checkmate"]

1. e4 {[%clk 0:04:59.1]} 1... e6 {[%clk 0:04:58.6]} 2. d4 {[%clk 0:04:58]} 2...
d5 {[%clk 0:04:58.3]} 3. e5 {[%clk 0:04:57.9]} 3... c5 {[%clk 0:04:57]} 4. c3
{[%clk 0:04:57.7]} 4... Qa5 {[%clk 0:04:56.4]} 5. a3 {[%clk 0:04:52]} 5... Qc7
{[%clk 0:04:52.5]} 6. Nf3 {[%clk 0:04:50.6]} 6... Ne7 {[%clk 0:04:50.4]} 7. Be2
{[%clk 0:04:47.7]} 7... h5 {[%clk 0:04:47.8]} 8. h4 {[%clk 0:04:46.2]} 8... Nf5
{[%clk 0:04:47]} 9. Bd3 {[%clk 0:04:41]} 9... Nh6 {[%clk 0:04:44.5]} 10. b4
{[%clk 0:04:35]} 10... cxb4 {[%clk 0:04:42.6]} 11. cxb4 {[%clk 0:04:32.5]} 11...
Be7 {[%clk 0:04:39.5]} 12. Bb2 {[%clk 0:04:31.8]} 12... Ng4 {[%clk 0:04:32.8]}
13. Nbd2 {[%clk 0:04:30.6]} 13... Bd7 {[%clk 0:04:31.6]} 14. Rc1 {[%clk
0:04:29.3]} 14... Qd8 {[%clk 0:04:30.5]} 15. Nb3 {[%clk 0:04:26.9]} 15... b6
{[%clk 0:04:28.5]} 16. Qc2 {[%clk 0:04:24]} 16... Ba4 {[%clk 0:04:21.2]} 17. Qc3
{[%clk 0:03:53]} 17... Nd7 {[%clk 0:04:12.9]} 18. Nbd2 {[%clk 0:03:38.6]} 18...
O-O {[%clk 0:04:08.9]} 19. g3 {[%clk 0:03:30.6]} 19... Rc8 {[%clk 0:04:00.2]}
20. Qxc8 {[%clk 0:03:26.8]} 20... Qxc8 {[%clk 0:03:59.9]} 21. Rxc8 {[%clk
0:03:25.2]} 21... Rxc8 {[%clk 0:03:59.3]} 22. Ke2 {[%clk 0:03:21.4]} 22... f6
{[%clk 0:03:48]} 23. exf6 {[%clk 0:03:09.6]} 23... Bxf6 {[%clk 0:03:34.6]} 24.
Rc1 {[%clk 0:03:05.7]} 24... Rxc1 {[%clk 0:03:31.6]} 25. Bxc1 {[%clk 0:03:04.7]}
25... Kf7 {[%clk 0:03:28.5]} 26. Bb2 {[%clk 0:02:54.1]} 26... Ke7 {[%clk
0:03:14.8]} 27. Ne1 {[%clk 0:02:47.8]} 27... Bc6 {[%clk 0:03:07.3]} 28. b5
{[%clk 0:02:40.4]} 28... Bb7 {[%clk 0:03:04.3]} 29. a4 {[%clk 0:02:38.3]} 29...
Kf7 {[%clk 0:02:57.7]} 30. f3 {[%clk 0:02:21]} 30... Nh6 {[%clk 0:02:55.9]} 31.
Nc2 {[%clk 0:02:16.8]} 31... Nf5 {[%clk 0:02:52.5]} 32. Bxf5 {[%clk 0:02:14.5]}
32... exf5 {[%clk 0:02:52.2]} 33. f4 {[%clk 0:02:12.3]} 33... Be7 {[%clk
0:02:45]} 34. Ba3 {[%clk 0:02:07.6]} 34... Bxa3 {[%clk 0:02:43.9]} 35. Nxa3
{[%clk 0:02:06.6]} 35... Nf6 {[%clk 0:02:38.2]} 36. Nf3 {[%clk 0:02:03.1]} 36...
Ke6 {[%clk 0:02:32.6]} 37. Nc2 {[%clk 0:01:58.4]} 37... Ne4 {[%clk 0:02:31.2]}
38. Ng5+ {[%clk 0:01:55.8]} 38... Kd6 {[%clk 0:02:22.3]} 39. Nxe4+ {[%clk
0:01:53.3]} 39... dxe4 {[%clk 0:02:21.5]} 40. Nb4 {[%clk 0:01:50.7]} 40... Bd5
{[%clk 0:02:17.7]} 41. Nc2 {[%clk 0:01:24.1]} 41... Bb3 {[%clk 0:02:08.1]} 42.
Ne3 {[%clk 0:01:22.4]} 42... g6 {[%clk 0:02:06.8]} 43. Kd2 {[%clk 0:01:15.2]}
43... Bxa4 {[%clk 0:02:03.2]} 44. Nc4+ {[%clk 0:01:09.2]} 44... Kd5 {[%clk
0:01:53.6]} 45. Ne5 {[%clk 0:00:51.4]} 45... Kxd4 {[%clk 0:01:52.9]} 46. Nxg6
{[%clk 0:00:49.9]} 46... e3+ {[%clk 0:01:51.8]} 47. Ke1 {[%clk 0:00:48]} 47...
Bxb5 {[%clk 0:01:48.1]} 48. Ne7 {[%clk 0:00:44.5]} 48... Bd7 {[%clk 0:01:45]}
49. Ng8 {[%clk 0:00:40.8]} 49... Be6 {[%clk 0:01:36.3]} 50. Nf6 {[%clk
0:00:37.5]} 50... Bf7 {[%clk 0:01:34.8]} 51. Nh7 {[%clk 0:00:30.1]} 51... a5
{[%clk 0:01:31.4]} 52. Ng5 {[%clk 0:00:28.6]} 52... Bg8 {[%clk 0:01:29.3]} 53.
g4 {[%clk 0:00:25.3]} 53... hxg4 {[%clk 0:01:27.3]} 54. h5 {[%clk 0:00:23.4]}
54... a4 {[%clk 0:01:26.9]} 55. h6 {[%clk 0:00:22.3]} 55... a3 {[%clk
0:01:26.2]} 56. Nh7 {[%clk 0:00:11.6]} 56... Bxh7 {[%clk 0:01:23.2]} 57. Kf1
{[%clk 0:00:10.3]} 57... a2 {[%clk 0:01:22.3]} 58. Ke2 {[%clk 0:00:10]} 58... g3
{[%clk 0:01:19.5]} 59. Kf3 {[%clk 0:00:08.8]} 59... a1=Q {[%clk 0:01:18.3]} 60.
Kg2 {[%clk 0:00:07.9]} 60... Qb2+ {[%clk 0:01:16.8]} 61. Kg1 {[%clk 0:00:03.4]}
61... Qf2+ {[%clk 0:01:15.5]} 62. Kh1 {[%clk 0:00:02.5]} 62... Qh2# {[%clk
0:01:15.1]} 0-1